[Event "Late-Titled-Tuesday-Blitz-September-12-2023"]
[Site "Chess.com"]
[Date "2023.09.12"]
[Round "11"]
[White "DefiantChair"]
[Black "vi_pranav"]
[Result "0-1"]
[WhiteElo "2679"]
[BlackElo "2979"]
[TimeControl "180+1"]
[EndTime "16:01:33 PDT"]
[Termination "vi_pranav won by resignation"]

1. e4 {[%clk 0:03:00.9]} 1... c6 {[%clk 0:02:59.5]} 2. d4 {[%clk 0:03:00.8]}
2... d5 {[%clk 0:03:00.4]} 3. e5 {[%clk 0:03:01.3]} 3... Bf5 {[%clk 0:03:01]} 4.
Nf3 {[%clk 0:03:01.4]} 4... e6 {[%clk 0:03:01.1]} 5. Be2 {[%clk 0:03:01.9]} 5...
c5 {[%clk 0:03:00.5]} 6. Be3 {[%clk 0:03:01.2]} 6... Qb6 {[%clk 0:02:58.8]} 7.
c4 {[%clk 0:03:01.5]} 7... dxc4 {[%clk 0:02:50.3]} 8. O-O {[%clk 0:03:00.8]}
8... Nc6 {[%clk 0:02:49.5]} 9. Nbd2 {[%clk 0:03:00.7]} 9... Rd8 {[%clk
0:02:47.9]} 10. Nxc4 {[%clk 0:03:00.6]} 10... Qc7 {[%clk 0:02:48.1]} 11. Qa4
{[%clk 0:02:57.7]} 11... Qd7 {[%clk 0:02:05.9]} 12. dxc5 {[%clk 0:02:18.4]}
12... Nxe5 {[%clk 0:02:05.6]} 13. Nd6+ {[%clk 0:02:09.9]} 13... Bxd6 {[%clk
0:02:02]} 14. Bb5 {[%clk 0:02:10.2]} 14... Nc6 {[%clk 0:01:59.1]} 15. cxd6
{[%clk 0:02:10.3]} 15... a6 {[%clk 0:01:45.1]} 16. Bxc6 {[%clk 0:02:10.3]} 16...
Qxc6 {[%clk 0:01:46]} 17. Qxc6+ {[%clk 0:02:10]} 17... bxc6 {[%clk 0:01:46.9]}
18. Rfd1 {[%clk 0:01:27.6]} 18... Be4 {[%clk 0:01:44]} 19. Ne5 {[%clk
0:01:03.3]} 19... f6 {[%clk 0:01:32.7]} 20. d7+ {[%clk 0:00:59.1]} 20... Kf8
{[%clk 0:01:32.5]} 21. Bc5+ {[%clk 0:00:51.4]} 21... Ne7 {[%clk 0:01:32.8]} 22.
Nc4 {[%clk 0:00:51.3]} 22... Bd5 {[%clk 0:01:32.1]} 23. Nb6 {[%clk 0:00:51.4]}
23... Kf7 {[%clk 0:01:29.9]} 24. Bd6 {[%clk 0:00:42.6]} 24... Nf5 {[%clk
0:01:05.5]} 25. Bc7 {[%clk 0:00:40.4]} 25... Rdf8 {[%clk 0:01:05.9]} 26. b4
{[%clk 0:00:27.5]} 26... Ke7 {[%clk 0:00:57.5]} 27. Rac1 {[%clk 0:00:23.1]}
27... Nd6 {[%clk 0:00:44.4]} 28. d8=Q+ {[%clk 0:00:20.2]} 28... Rxd8 {[%clk
0:00:44.2]} 29. Bxd8+ {[%clk 0:00:20.5]} 29... Rxd8 {[%clk 0:00:43.6]} 30. Nxd5+
{[%clk 0:00:21.2]} 30... cxd5 {[%clk 0:00:44.5]} 31. Rc6 {[%clk 0:00:21.1]}
31... Rb8 {[%clk 0:00:23.5]} 32. a3 {[%clk 0:00:20.5]} 32... Ra8 {[%clk
0:00:21.7]} 33. Rc7+ {[%clk 0:00:20.5]} 33... Kf8 {[%clk 0:00:20.5]} 34. Rdc1
{[%clk 0:00:19.7]} 34... d4 {[%clk 0:00:20.7]} 35. R1c6 {[%clk 0:00:18.3]} 35...
Rd8 {[%clk 0:00:20.3]} 36. a4 {[%clk 0:00:13.3]} 36... d3 {[%clk 0:00:20.1]} 37.
Rc1 {[%clk 0:00:13.4]} 37... e5 {[%clk 0:00:17.2]} 38. f3 {[%clk 0:00:13.5]}
38... f5 {[%clk 0:00:14.8]} 39. Kf2 {[%clk 0:00:08.1]} 39... e4 {[%clk
0:00:07.6]} 40. Ke3 {[%clk 0:00:08.3]} 40... Rb8 {[%clk 0:00:06.5]} 41. Rb1
{[%clk 0:00:06.4]} 41... h6 {[%clk 0:00:03.3]} 42. fxe4 {[%clk 0:00:06.7]} 42...
fxe4 {[%clk 0:00:02.6]} 43. Rd7 {[%clk 0:00:07.4]} 43... Rb6 {[%clk 0:00:02.5]}
44. a5 {[%clk 0:00:07.7]} 44... Rc6 {[%clk 0:00:02.8]} 45. Rb2 {[%clk
0:00:07.4]} 45... Nc4+ {[%clk 0:00:03]} 46. Kxe4 {[%clk 0:00:08]} 46... Nxb2
{[%clk 0:00:02.2]} 47. b5 {[%clk 0:00:08.7]} 47... axb5 {[%clk 0:00:02.4]} 48.
Rb7 {[%clk 0:00:09]} 48... d2 {[%clk 0:00:02.6]} 49. a6 {[%clk 0:00:09.4]} 49...
Rxa6 {[%clk 0:00:02.5]} 0-1

[Event "Late-Titled-Tuesday-Blitz-September-12-2023"]
[Site "Chess.com"]
[Date "2023.09.12"]
[Round "11"]
[White "zeitnot2006"]
[Black "simplerXiao"]
[Result "1-0"]
[WhiteElo "2752"]
[BlackElo "2523"]
[TimeControl "180+1"]
[EndTime "16:01:33 PDT"]
[Termination "zeitnot2006 won on time"]

1. a3 {[%clk 0:03:00.9]} 1... f5 {[%clk 0:02:56.2]} 2. d4 {[%clk 0:02:58.2]}
2... Nf6 {[%clk 0:02:55]} 3. Nc3 {[%clk 0:02:56.8]} 3... d5 {[%clk 0:02:55]} 4.
Bg5 {[%clk 0:02:56.4]} 4... e6 {[%clk 0:02:53.4]} 5. e3 {[%clk 0:02:54.8]} 5...
Bd6 {[%clk 0:02:50.6]} 6. Nf3 {[%clk 0:02:54.7]} 6... O-O {[%clk 0:02:51.1]} 7.
Ne5 {[%clk 0:02:53.1]} 7... c6 {[%clk 0:02:50.9]} 8. f4 {[%clk 0:02:50]} 8...
Qe8 {[%clk 0:02:50.8]} 9. Be2 {[%clk 0:02:48.5]} 9... Be7 {[%clk 0:02:26.7]} 10.
O-O {[%clk 0:02:47.3]} 10... Ne4 {[%clk 0:02:26.9]} 11. Nxe4 {[%clk 0:02:45.1]}
11... dxe4 {[%clk 0:02:22.2]} 12. Bxe7 {[%clk 0:02:45.4]} 12... Qxe7 {[%clk
0:02:22.3]} 13. b4 {[%clk 0:02:42.5]} 13... Nd7 {[%clk 0:02:22.3]} 14. Bc4
{[%clk 0:02:40.2]} 14... a5 {[%clk 0:02:12.7]} 15. Qd2 {[%clk 0:02:29.6]} 15...
Nxe5 {[%clk 0:01:52.8]} 16. dxe5 {[%clk 0:02:22.6]} 16... Rd8 {[%clk 0:01:51.4]}
17. Qc3 {[%clk 0:02:22.5]} 17... b6 {[%clk 0:01:31]} 18. Rfd1 {[%clk 0:02:02.9]}
18... axb4 {[%clk 0:01:18.2]} 19. axb4 {[%clk 0:02:01.3]} 19... Bb7 {[%clk
0:01:16.6]} 20. Bb3 {[%clk 0:01:46.2]} 20... Kf7 {[%clk 0:01:10.9]} 21. h3
{[%clk 0:01:40.8]} 21... c5 {[%clk 0:01:07.5]} 22. bxc5 {[%clk 0:01:33.4]} 22...
Qxc5 {[%clk 0:01:03]} 23. Qe1 {[%clk 0:01:33.2]} 23... Bd5 {[%clk 0:00:55.2]}
24. Rxa8 {[%clk 0:01:32.5]} 24... Rxa8 {[%clk 0:00:52.4]} 25. Bxd5 {[%clk
0:01:32.6]} 25... exd5 {[%clk 0:00:52.6]} 26. Qd2 {[%clk 0:01:20.1]} 26... Ke6
{[%clk 0:00:52.7]} 27. g4 {[%clk 0:01:18.4]} 27... g6 {[%clk 0:00:49.2]} 28.
gxf5+ {[%clk 0:01:15.7]} 28... gxf5 {[%clk 0:00:49.2]} 29. Qf2 {[%clk
0:01:12.8]} 29... Ra2 {[%clk 0:00:47.2]} 30. Rd2 {[%clk 0:01:00.3]} 30... Ra1+
{[%clk 0:00:42.6]} 31. Kh2 {[%clk 0:00:59.6]} 31... Qc3 {[%clk 0:00:38.3]} 32.
Re2 {[%clk 0:00:50.4]} 32... Qc4 {[%clk 0:00:32.3]} 33. Qg2 {[%clk 0:00:46.4]}
33... Kf7 {[%clk 0:00:30.2]} 34. Rf2 {[%clk 0:00:42.1]} 34... h6 {[%clk
0:00:25.4]} 35. Qg3 {[%clk 0:00:33.1]} 35... Ra2 {[%clk 0:00:20.2]} 36. Qg2
{[%clk 0:00:20.7]} 36... d4 {[%clk 0:00:19.7]} 37. exd4 {[%clk 0:00:18.9]} 37...
Qxd4 {[%clk 0:00:20.6]} 38. Qg3 {[%clk 0:00:10.4]} 38... e3 {[%clk 0:00:20.2]}
39. Rg2 {[%clk 0:00:10.3]} 39... Ke6 {[%clk 0:00:14.7]} 40. Qg8+ {[%clk
0:00:10]} 40... Kd7 {[%clk 0:00:14.7]} 41. Qxa2 {[%clk 0:00:10.3]} 41... Qxf4+
{[%clk 0:00:14]} 42. Kg1 {[%clk 0:00:10.4]} 42... Qd4 {[%clk 0:00:09.9]} 43.
Qf7+ {[%clk 0:00:09.6]} 43... Kc6 {[%clk 0:00:09.4]} 44. Qe6+ {[%clk 0:00:09.9]}
44... Kb5 {[%clk 0:00:09.1]} 45. Qb3+ {[%clk 0:00:08.8]} 45... Kc5 {[%clk
0:00:07.6]} 46. Qd3 {[%clk 0:00:07.9]} 46... Qxe5 {[%clk 0:00:06.9]} 47. c3
{[%clk 0:00:06.1]} 47... f4 {[%clk 0:00:06.2]} 48. Qd4+ {[%clk 0:00:02.7]} 48...
Qxd4 {[%clk 0:00:06.4]} 49. cxd4+ {[%clk 0:00:03.6]} 49... Kxd4 {[%clk
0:00:06.9]} 50. Rb2 {[%clk 0:00:03.6]} 50... h5 {[%clk 0:00:01.7]} 51. Kf1
{[%clk 0:00:02.8]} 51... Ke4 {[%clk 0:00:02.6]} 52. Rb4+ {[%clk 0:00:02.6]}
52... Kf3 {[%clk 0:00:03.5]} 53. Rxb6 {[%clk 0:00:03]} 53... Kg3 {[%clk
0:00:04.4]} 54. Rg6+ {[%clk 0:00:03]} 54... Kxh3 {[%clk 0:00:03.8]} 55. Ke2
{[%clk 0:00:03.1]} 55... h4 {[%clk 0:00:03.8]} 56. Kf3 {[%clk 0:00:03.5]} 56...
Kh2 {[%clk 0:00:03.8]} 57. Rg4 {[%clk 0:00:02.5]} 57... h3 {[%clk 0:00:02.9]}
58. Rh4 {[%clk 0:00:02.4]} 1-0

[Event "Late-Titled-Tuesday-Blitz-September-12-2023"]
[Site "Chess.com"]
[Date "2023.09.12"]
[Round "11"]
[White "Qvalda"]
[Black "Ducke13"]
[Result "0-1"]
[WhiteElo "2361"]
[BlackElo "2511"]
[TimeControl "180+1"]
[EndTime "16:01:34 PDT"]
[Termination "Ducke13 won on time"]

1. Nf3 {[%clk 0:02:55.7]} 1... Nf6 {[%clk 0:02:59.6]} 2. b3 {[%clk 0:02:51]}
2... g6 {[%clk 0:02:58]} 3. Bb2 {[%clk 0:02:51.1]} 3... Bg7 {[%clk 0:02:58.7]}
4. e3 {[%clk 0:02:49.9]} 4... O-O {[%clk 0:02:54.9]} 5. d4 {[%clk 0:02:50.3]}
5... b6 {[%clk 0:02:52.6]} 6. Bd3 {[%clk 0:02:44]} 6... Bb7 {[%clk 0:02:52.8]}
7. O-O {[%clk 0:02:43.7]} 7... Ne4 {[%clk 0:02:51.3]} 8. c4 {[%clk 0:02:42.7]}
8... d6 {[%clk 0:02:50.5]} 9. Nbd2 {[%clk 0:02:34.5]} 9... Nxd2 {[%clk
0:02:50.3]} 10. Nxd2 {[%clk 0:02:33.4]} 10... a5 {[%clk 0:02:51.2]} 11. a3
{[%clk 0:02:32.9]} 11... Nd7 {[%clk 0:02:51.1]} 12. Qc2 {[%clk 0:02:29.7]} 12...
e5 {[%clk 0:02:50.9]} 13. Be4 {[%clk 0:02:21.4]} 13... Qc8 {[%clk 0:02:39.7]}
14. Bxb7 {[%clk 0:02:12.8]} 14... Qxb7 {[%clk 0:02:40.6]} 15. d5 {[%clk
0:02:13.2]} 15... f5 {[%clk 0:02:37.6]} 16. e4 {[%clk 0:02:12.3]} 16... Bh6
{[%clk 0:02:24.1]} 17. Nb1 {[%clk 0:02:04.3]} 17... Nc5 {[%clk 0:02:20.5]} 18.
Nc3 {[%clk 0:02:03.5]} 18... a4 {[%clk 0:02:01.1]} 19. b4 {[%clk 0:01:58.9]}
19... Nb3 {[%clk 0:02:00.5]} 20. Rad1 {[%clk 0:01:52.9]} 20... Nd4 {[%clk
0:02:00.6]} 21. Qd3 {[%clk 0:01:44.9]} 21... Rf7 {[%clk 0:01:49.2]} 22. Nb5
{[%clk 0:01:40.7]} 22... fxe4 {[%clk 0:01:17.5]} 23. Qxe4 {[%clk 0:01:31.3]}
23... Rf4 {[%clk 0:01:16.5]} 24. Qd3 {[%clk 0:01:25]} 24... Nxb5 {[%clk
0:01:11]} 25. cxb5 {[%clk 0:01:25.1]} 25... Raf8 {[%clk 0:01:10.8]} 26. Qh3
{[%clk 0:01:19.8]} 26... Bg7 {[%clk 0:01:06]} 27. Bc1 {[%clk 0:01:11.2]} 27...
R4f5 {[%clk 0:01:02.1]} 28. Be3 {[%clk 0:01:04.6]} 28... R8f7 {[%clk 0:00:53.8]}
29. Qh4 {[%clk 0:01:02.3]} 29... Qc8 {[%clk 0:00:43.6]} 30. Rc1 {[%clk
0:00:57.9]} 30... Qe8 {[%clk 0:00:44]} 31. Rc6 {[%clk 0:00:51.7]} 31... e4
{[%clk 0:00:37.4]} 32. Rd1 {[%clk 0:00:43.7]} 32... Bf6 {[%clk 0:00:30.5]} 33.
Qg4 {[%clk 0:00:40]} 33... Kg7 {[%clk 0:00:21.3]} 34. Qe2 {[%clk 0:00:38.6]}
34... h5 {[%clk 0:00:11]} 35. h3 {[%clk 0:00:38.5]} 35... Bd8 {[%clk 0:00:10]}
36. Bd4+ {[%clk 0:00:36.8]} 36... Bf6 {[%clk 0:00:09.8]} 37. Bxf6+ {[%clk
0:00:32.5]} 37... R5xf6 {[%clk 0:00:10.7]} 38. Qb2 {[%clk 0:00:27]} 38... Kh7
{[%clk 0:00:09.3]} 39. Rd2 {[%clk 0:00:12.9]} 39... e3 {[%clk 0:00:09.4]} 40.
fxe3 {[%clk 0:00:12]} 40... Qxe3+ {[%clk 0:00:09.7]} 41. Kh2 {[%clk 0:00:12.3]}
41... Qf4+ {[%clk 0:00:09.6]} 42. Kg1 {[%clk 0:00:12.6]} 42... Qe3+ {[%clk
0:00:07.4]} 43. Kh2 {[%clk 0:00:12.4]} 43... Rf1 {[%clk 0:00:07.6]} 44. Rc1
{[%clk 0:00:08]} 44... Qg1+ {[%clk 0:00:05.9]} 45. Kg3 {[%clk 0:00:08.5]} 45...
Rxc1 {[%clk 0:00:06.5]} 46. Re2 {[%clk 0:00:03.8]} 46... Rcf1 {[%clk 0:00:06]}
47. Qc2 {[%clk 0:00:02.9]} 47... R1f3+ {[%clk 0:00:06.1]} 48. Kh4 {[%clk
0:00:02.9]} 48... R7f4+ {[%clk 0:00:05.6]} 49. Kg5 {[%clk 0:00:03.2]} 49... Rf5+
{[%clk 0:00:04.9]} 50. Kh4 {[%clk 0:00:03.6]} 50... R3f4+ {[%clk 0:00:04.5]} 51.
Kg3 {[%clk 0:00:04]} 51... Qf1 {[%clk 0:00:03.9]} 52. Qxc7+ {[%clk 0:00:02.9]}
52... Kh6 {[%clk 0:00:03.7]} 53. Qd8 {[%clk 0:00:02.8]} 53... h4+ {[%clk
0:00:02.9]} 54. Kh2 {[%clk 0:00:02.4]} 54... Qxe2 {[%clk 0:00:03.4]} 55. Qh8+
{[%clk 0:00:02]} 55... Kg5 {[%clk 0:00:03.7]} 56. Qd8+ {[%clk 0:00:02.2]} 56...
Rf6 {[%clk 0:00:03.9]} 0-1

[Event "Late-Titled-Tuesday-Blitz-September-12-2023"]
[Site "Chess.com"]
[Date "2023.09.12"]
[Round "11"]
[White "Miguelitro69"]
[Black "ChessDokmus"]
[Result "0-1"]
[WhiteElo "2279"]
[BlackElo "2217"]
[TimeControl "180+1"]
[EndTime "16:01:35 PDT"]
[Termination "ChessDokmus won on time"]

1. e4 {[%clk 0:03:00.9]} 1... c5 {[%clk 0:02:54.9]} 2. Nf3 {[%clk 0:03:00.8]}
2... Nc6 {[%clk 0:02:51.6]} 3. d4 {[%clk 0:03:00.6]} 3... cxd4 {[%clk
0:02:52.5]} 4. Nxd4 {[%clk 0:03:00.7]} 4... g6 {[%clk 0:02:52.8]} 5. Nc3 {[%clk
0:03:01.1]} 5... Bg7 {[%clk 0:02:52.9]} 6. Be3 {[%clk 0:03:01.5]} 6... Nf6
{[%clk 0:02:53.3]} 7. Bc4 {[%clk 0:03:00.8]} 7... O-O {[%clk 0:02:51.7]} 8. Bb3
{[%clk 0:02:56.5]} 8... d6 {[%clk 0:02:51.7]} 9. f3 {[%clk 0:02:45]} 9... Qb6
{[%clk 0:02:45.4]} 10. Nf5 {[%clk 0:02:42]} 10... Qa5 {[%clk 0:02:38.3]} 11.
Nxg7 {[%clk 0:02:38.4]} 11... Kxg7 {[%clk 0:02:38.4]} 12. Qd2 {[%clk 0:02:35.3]}
12... Be6 {[%clk 0:02:35.7]} 13. Bh6+ {[%clk 0:02:34.1]} 13... Kg8 {[%clk
0:02:33.8]} 14. Bxf8 {[%clk 0:02:33.8]} 14... Rxf8 {[%clk 0:02:34.3]} 15. h4
{[%clk 0:02:33.2]} 15... Bxb3 {[%clk 0:02:33]} 16. cxb3 {[%clk 0:02:30.7]} 16...
Ne5 {[%clk 0:02:32.3]} 17. O-O-O {[%clk 0:02:28.1]} 17... h5 {[%clk 0:02:30.2]}
18. Kb1 {[%clk 0:02:27.6]} 18... Rc8 {[%clk 0:02:29.8]} 19. f4 {[%clk
0:02:18.3]} 19... Neg4 {[%clk 0:02:24.1]} 20. f5 {[%clk 0:02:17.9]} 20... Qb4
{[%clk 0:02:17]} 21. fxg6 {[%clk 0:02:06.9]} 21... fxg6 {[%clk 0:02:16.5]} 22.
Qg5 {[%clk 0:01:53.7]} 22... Kf7 {[%clk 0:02:03.7]} 23. Rhf1 {[%clk 0:01:32.4]}
23... Rc5 {[%clk 0:01:56.4]} 24. Qf4 {[%clk 0:01:22.6]} 24... Ke6 {[%clk
0:01:49.2]} 25. Nd5 {[%clk 0:01:15.6]} 25... Qxe4+ {[%clk 0:01:47.9]} 26. Qxe4+
{[%clk 0:01:11.5]} 26... Nxe4 {[%clk 0:01:47.7]} 27. Nf4+ {[%clk 0:01:10.3]}
27... Kd7 {[%clk 0:01:41.5]} 28. Rfe1 {[%clk 0:01:04.2]} 28... Ngf2 {[%clk
0:01:29.7]} 29. Rd5 {[%clk 0:00:38.2]} 29... Rc6 {[%clk 0:01:05.5]} 30. Nxg6
{[%clk 0:00:37.4]} 30... e6 {[%clk 0:01:00.8]} 31. Rd4 {[%clk 0:00:36.4]} 31...
Nf6 {[%clk 0:00:46.4]} 32. Nf8+ {[%clk 0:00:35.2]} 32... Ke7 {[%clk 0:00:42.6]}
33. Nxe6 {[%clk 0:00:35.2]} 33... Kd7 {[%clk 0:00:40.4]} 34. Nf4 {[%clk
0:00:33.5]} 34... N2g4 {[%clk 0:00:32.9]} 35. b4 {[%clk 0:00:32.1]} 35... a6
{[%clk 0:00:32.5]} 36. Nd5 {[%clk 0:00:23.9]} 36... Nxd5 {[%clk 0:00:31.5]} 37.
Rxd5 {[%clk 0:00:24]} 37... Rb6 {[%clk 0:00:22.4]} 38. a3 {[%clk 0:00:20.2]}
38... Nf6 {[%clk 0:00:19.8]} 39. Rf5 {[%clk 0:00:20.4]} 39... d5 {[%clk
0:00:20]} 40. Ref1 {[%clk 0:00:21]} 40... Ne4 {[%clk 0:00:19.4]} 41. Rf7+ {[%clk
0:00:19.3]} 41... Ke6 {[%clk 0:00:18.9]} 42. R1f4 {[%clk 0:00:15.3]} 42... Rc6
{[%clk 0:00:17.2]} 43. Ka2 {[%clk 0:00:15]} 43... Ke5 {[%clk 0:00:17.3]} 44.
R7f5+ {[%clk 0:00:14.9]} 44... Kd4 {[%clk 0:00:17.4]} 45. Rxh5 {[%clk
0:00:15.2]} 45... Rc2 {[%clk 0:00:17.2]} 46. Kb1 {[%clk 0:00:12.8]} 46... Rxg2
{[%clk 0:00:16.5]} 47. Rh8 {[%clk 0:00:11.4]} 47... b5 {[%clk 0:00:14.9]} 48.
Re8 {[%clk 0:00:10.2]} 48... Kd3 {[%clk 0:00:15]} 49. Rd8 {[%clk 0:00:09.7]}
49... d4 {[%clk 0:00:14.7]} 50. Rf3+ {[%clk 0:00:08.2]} 50... Kc4 {[%clk
0:00:14.1]} 51. Re8 {[%clk 0:00:07.8]} 51... Nd2+ {[%clk 0:00:13.5]} 52. Ka2
{[%clk 0:00:07.9]} 52... Nxf3 {[%clk 0:00:14.4]} 53. Rf8 {[%clk 0:00:06.8]}
53... Ne5 {[%clk 0:00:14.2]} 54. Rf4 {[%clk 0:00:06.3]} 54... Nd3 {[%clk
0:00:13.4]} 55. a4 {[%clk 0:00:05]} 55... Rf2 {[%clk 0:00:12.6]} 56. Rg4 {[%clk
0:00:02.5]} 56... Rxb2+ {[%clk 0:00:11.6]} 57. Ka3 {[%clk 0:00:02.7]} 57... Rb3+
{[%clk 0:00:11.6]} 58. Ka2 {[%clk 0:00:02.5]} 58... Nxb4+ {[%clk 0:00:12.5]} 0-1

[Event "Late-Titled-Tuesday-Blitz-September-12-2023"]
[Site "Chess.com"]
[Date "2023.09.12"]
[Round "11"]
[White "Orest_Vovk"]
[Black "CarlosjPineror"]
[Result "1-0"]
[WhiteElo "2586"]
[BlackElo "2451"]
[TimeControl "180+1"]
[EndTime "16:01:41 PDT"]
[Termination "Orest_Vovk won by resignation"]

1. g4 {[%clk 0:03:00.9]} 1... e5 {[%clk 0:02:57.8]} 2. g5 {[%clk 0:02:50.4]}
2... d5 {[%clk 0:02:51.5]} 3. Bg2 {[%clk 0:02:47.6]} 3... c6 {[%clk 0:02:44.5]}
4. d4 {[%clk 0:02:45.7]} 4... e4 {[%clk 0:02:43.1]} 5. c4 {[%clk 0:02:43.2]}
5... Be6 {[%clk 0:02:40.5]} 6. Nc3 {[%clk 0:02:41.8]} 6... h6 {[%clk 0:02:38.1]}
7. h4 {[%clk 0:02:39.7]} 7... hxg5 {[%clk 0:02:37.6]} 8. hxg5 {[%clk 0:02:40.6]}
8... Rxh1 {[%clk 0:02:38.2]} 9. Bxh1 {[%clk 0:02:41.4]} 9... Be7 {[%clk
0:02:38.6]} 10. Qb3 {[%clk 0:02:40.7]} 10... Qb6 {[%clk 0:02:31.3]} 11. c5
{[%clk 0:02:38.7]} 11... Qxb3 {[%clk 0:02:16.9]} 12. axb3 {[%clk 0:02:37.9]}
12... Nd7 {[%clk 0:02:07.6]} 13. b4 {[%clk 0:02:37.3]} 13... a6 {[%clk
0:02:06.4]} 14. b5 {[%clk 0:02:36.7]} 14... cxb5 {[%clk 0:02:05.2]} 15. Nxb5
{[%clk 0:02:36.3]} 15... Rc8 {[%clk 0:02:05.4]} 16. Nc3 {[%clk 0:02:35.4]} 16...
f6 {[%clk 0:02:00.3]} 17. g6 {[%clk 0:02:31.9]} 17... Nf8 {[%clk 0:01:58.8]} 18.
f3 {[%clk 0:02:26.7]} 18... f5 {[%clk 0:01:58.1]} 19. fxe4 {[%clk 0:02:21.6]}
19... fxe4 {[%clk 0:01:58.1]} 20. Nxe4 {[%clk 0:02:21.7]} 20... dxe4 {[%clk
0:01:57.8]} 21. Bxe4 {[%clk 0:02:22.6]} 21... Nf6 {[%clk 0:01:57.8]} 22. Bxb7
{[%clk 0:02:21.9]} 22... Rb8 {[%clk 0:01:57.2]} 23. c6 {[%clk 0:02:17.3]} 23...
Bd6 {[%clk 0:01:42.5]} 24. Rxa6 {[%clk 0:02:13.4]} 24... Nxg6 {[%clk 0:01:41.5]}
25. Nf3 {[%clk 0:02:01]} 25... Ke7 {[%clk 0:01:38.9]} 26. Bg5 {[%clk 0:01:58]}
26... Bd5 {[%clk 0:01:37.5]} 27. Ra5 {[%clk 0:01:45.4]} 27... Bxf3 {[%clk
0:01:34.5]} 28. exf3 {[%clk 0:01:44.4]} 28... Bb4+ {[%clk 0:01:34.6]} 29. Bd2
{[%clk 0:01:42.5]} 29... Bxa5 {[%clk 0:01:33.2]} 30. Bxa5 {[%clk 0:01:43.4]}
30... Nd5 {[%clk 0:01:30.5]} 31. b4 {[%clk 0:01:31.2]} 31... Nf8 {[%clk
0:01:24.1]} 32. b5 {[%clk 0:01:24.8]} 32... Ne6 {[%clk 0:01:24.4]} 33. b6 {[%clk
0:01:19.1]} 33... Kd6 {[%clk 0:01:06.6]} 34. f4 {[%clk 0:01:09.8]} 34... g6
{[%clk 0:01:02.4]} 35. Kf2 {[%clk 0:01:05.3]} 35... Rf8 {[%clk 0:00:58.2]} 36.
c7 {[%clk 0:00:57.6]} 36... Rxf4+ {[%clk 0:00:24]} 37. Kg3 {[%clk 0:00:56.5]}
37... Rf8 {[%clk 0:00:19.6]} 38. c8=Q {[%clk 0:00:39]} 38... Rxc8 {[%clk
0:00:16.7]} 39. Bxc8 {[%clk 0:00:39.9]} 39... Nxd4 {[%clk 0:00:17.1]} 40. b7
{[%clk 0:00:35.5]} 40... Nc6 {[%clk 0:00:15.9]} 41. Bd8 {[%clk 0:00:35]} 41...
Nde7 {[%clk 0:00:13.5]} 42. Kg4 {[%clk 0:00:20]} 42... Nd5 {[%clk 0:00:10.6]}
43. Kg5 {[%clk 0:00:15.2]} 43... Nc7 {[%clk 0:00:09]} 44. Kxg6 {[%clk
0:00:10.9]} 44... Na6 {[%clk 0:00:09.2]} 45. Bh4 {[%clk 0:00:09.3]} 45... Na5
{[%clk 0:00:06.5]} 46. Bg3+ {[%clk 0:00:07.5]} 46... Ke7 {[%clk 0:00:06.4]} 47.
b8=Q {[%clk 0:00:07.1]} 47... Nxb8 {[%clk 0:00:06.4]} 48. Bxb8 {[%clk
0:00:07.8]} 48... Nc6 {[%clk 0:00:05.8]} 49. Bh2 {[%clk 0:00:07.3]} 49... Nd8
{[%clk 0:00:05]} 50. Bh3 {[%clk 0:00:06.1]} 50... Ke8 {[%clk 0:00:05.3]} 51. Kf6
{[%clk 0:00:05.1]} 51... Kf8 {[%clk 0:00:05.7]} 52. Bd6+ {[%clk 0:00:04.1]}
52... Ke8 {[%clk 0:00:05.2]} 53. Bf1 {[%clk 0:00:04.2]} 53... Nf7 {[%clk
0:00:04.5]} 54. Bb5+ {[%clk 0:00:03.5]} 54... Kd8 {[%clk 0:00:04.5]} 55. Kxf7
{[%clk 0:00:03.8]} 55... Kc8 {[%clk 0:00:04.8]} 56. Ke6 {[%clk 0:00:04.1]} 1-0